[Event "Betsys MČR v online bleskovém šachu 2021"]
[Site "Chess.com"]
[Date "2021.04.17"]
[Round "5"]
[White "DavidZidlicky"]
[Black "Krejcak"]
[Result "0-1"]
[WhiteElo "1696"]
[BlackElo "2003"]
[TimeControl "180+1"]
[EndTime "9:44:48 PDT"]
[Termination "Uživatel Krejcak zvítězil po vzdání soupeře"]

1. e4 {[%clk 0:03:00.9]} 1... e5 {[%clk 0:02:59.6]} 2. Nf3 {[%clk 0:03:00.6]}
2... Nc6 {[%clk 0:02:59.5]} 3. Nc3 {[%clk 0:03:00.8]} 3... Nf6 {[%clk
0:02:57.5]} 4. d4 {[%clk 0:02:59.9]} 4... exd4 {[%clk 0:02:56.8]} 5. Nxd4 {[%clk
0:03:00.2]} 5... d6 {[%clk 0:02:51.3]} 6. Bg5 {[%clk 0:02:56.9]} 6... Be7 {[%clk
0:02:50.9]} 7. Nxc6 {[%clk 0:02:54.3]} 7... bxc6 {[%clk 0:02:50.4]} 8. h4 {[%clk
0:02:49.9]} 8... h6 {[%clk 0:02:46.6]} 9. Be3 {[%clk 0:02:42.1]} 9... Ng4 {[%clk
0:02:39.8]} 10. g3 {[%clk 0:02:31.1]} 10... Nxe3 {[%clk 0:02:38.4]} 11. fxe3
{[%clk 0:02:31.1]} 11... O-O {[%clk 0:02:35.6]} 12. Be2 {[%clk 0:02:30.1]} 12...
Be6 {[%clk 0:02:33.3]} 13. O-O {[%clk 0:02:29.2]} 13... d5 {[%clk 0:02:29.6]}
14. e5 {[%clk 0:02:24.7]} 14... c5 {[%clk 0:02:26.9]} 15. Bg4 {[%clk 0:02:23.5]}
15... Qd7 {[%clk 0:02:21.2]} 16. Bxe6 {[%clk 0:02:08.1]} 16... fxe6 {[%clk
0:02:17.9]} 17. Qd3 {[%clk 0:02:05.3]} 17... c4 {[%clk 0:02:07.7]} 18. Qg6
{[%clk 0:02:03.4]} 18... Bc5 {[%clk 0:01:55.8]} 19. Kg2 {[%clk 0:01:50.5]} 19...
Bxe3 {[%clk 0:01:52.7]} 20. Rad1 {[%clk 0:01:44.4]} 20... Rxf1 {[%clk
0:01:41.7]} 21. Rxf1 {[%clk 0:01:43.8]} 21... Rf8 {[%clk 0:01:41.2]} 22. Rxf8+
{[%clk 0:01:41.1]} 22... Kxf8 {[%clk 0:01:41]} 23. Qh5 {[%clk 0:01:28.6]} 23...
Bd4 {[%clk 0:01:33.7]} 24. Nd1 {[%clk 0:01:21.1]} 24... Qf7 {[%clk 0:01:22.6]}
25. c3 {[%clk 0:01:13.6]} 25... Qxh5 {[%clk 0:01:21.5]} 0-1

[Event "Betsys MČR v online bleskovém šachu 2021"]
[Site "Chess.com"]
[Date "2021.04.17"]
[Round "5"]
[White "Dale00007"]
[Black "Newyork6"]
[Result "1-0"]
[WhiteElo "1398"]
[BlackElo "333"]
[TimeControl "180+1"]
[EndTime "9:44:51 PDT"]
[Termination "Uživatel Dale00007 zvítězil matem"]

1. e4 {[%clk 0:03:00.7]} 1... c6 {[%clk 0:02:57.1]} 2. d4 {[%clk 0:02:59.6]}
2... d6 {[%clk 0:02:54.6]} 3. Nc3 {[%clk 0:02:58.6]} 3... Nd7 {[%clk 0:02:53.3]}
4. Nf3 {[%clk 0:02:50.8]} 4... b6 {[%clk 0:02:54.2]} 5. Be2 {[%clk 0:02:44.5]}
5... Bb7 {[%clk 0:02:55.1]} 6. O-O {[%clk 0:02:42.8]} 6... e6 {[%clk 0:02:52.8]}
7. Bg5 {[%clk 0:02:35]} 7... f6 {[%clk 0:02:50]} 8. Bh4 {[%clk 0:02:34.6]} 8...
Be7 {[%clk 0:02:49.2]} 9. Bg3 {[%clk 0:02:29.4]} 9... f5 {[%clk 0:02:48.6]} 10.
exf5 {[%clk 0:02:11.9]} 10... Bf6 {[%clk 0:02:49.5]} 11. fxe6 {[%clk 0:02:08.6]}
11... Nb8 {[%clk 0:02:43.7]} 12. Ne4 {[%clk 0:01:57.7]} 12... Ne7 {[%clk
0:02:41.7]} 13. Nxd6+ {[%clk 0:01:52.1]} 13... Qxd6 {[%clk 0:02:22]} 14. Bxd6
{[%clk 0:01:50.9]} 14... O-O {[%clk 0:02:19.8]} 15. Bxe7 {[%clk 0:01:48.9]}
15... Rf7 {[%clk 0:02:18.6]} 16. exf7+ {[%clk 0:01:43.1]} 16... Kxf7 {[%clk
0:02:16.3]} 17. Bxf6 {[%clk 0:01:39.7]} 17... Kxf6 {[%clk 0:02:15.6]} 18. Qd2
{[%clk 0:01:33.1]} 18... c5 {[%clk 0:02:08.7]} 19. dxc5 {[%clk 0:01:32]} 19...
bxc5 {[%clk 0:02:06.7]} 20. Qd6+ {[%clk 0:01:30.5]} 20... Kf7 {[%clk 0:01:58.2]}
21. Bc4+ {[%clk 0:01:27.5]} 21... Ke8 {[%clk 0:01:33.1]} 22. Rfe1+ {[%clk
0:01:26.8]} 22... Be4 {[%clk 0:01:09.5]} 23. Rxe4# {[%clk 0:01:24.5]} 1-0

[Event "Betsys MČR v online bleskovém šachu 2021"]
[Site "Chess.com"]
[Date "2021.04.17"]
[Round "5"]
[White "Sfreedom01"]
[Black "DrDANDog"]
[Result "0-1"]
[WhiteElo "1331"]
[BlackElo "1765"]
[TimeControl "180+1"]
[EndTime "9:44:56 PDT"]
[Termination "Uživatel DrDANDog zvítězil po vzdání soupeře"]

1. e4 {[%clk 0:03:00.9]} 1... Nf6 {[%clk 0:02:59.9]} 2. e5 {[%clk 0:02:59.9]}
2... Nd5 {[%clk 0:03:00.2]} 3. d4 {[%clk 0:03:00.1]} 3... d6 {[%clk 0:03:00.5]}
4. exd6 {[%clk 0:02:59.1]} 4... exd6 {[%clk 0:03:01.4]} 5. c3 {[%clk 0:02:59.5]}
5... Be7 {[%clk 0:03:01.4]} 6. Nf3 {[%clk 0:03:00]} 6... O-O {[%clk 0:03:01.4]}
7. Be2 {[%clk 0:03:00.6]} 7... Nc6 {[%clk 0:03:00.4]} 8. Be3 {[%clk 0:02:58.9]}
8... Bf6 {[%clk 0:03:00.6]} 9. O-O {[%clk 0:02:58.1]} 9... Nxe3 {[%clk
0:03:00.8]} 10. fxe3 {[%clk 0:02:58]} 10... Qe7 {[%clk 0:03:00.5]} 11. Na3
{[%clk 0:02:54.6]} 11... Qxe3+ {[%clk 0:02:59.4]} 12. Kh1 {[%clk 0:02:50.1]}
12... Re8 {[%clk 0:02:57.4]} 13. Re1 {[%clk 0:02:47.8]} 13... Bg4 {[%clk
0:02:55.8]} 14. Bd3 {[%clk 0:02:44.3]} 14... Qf4 {[%clk 0:02:45.3]} 15. Rf1
{[%clk 0:02:29.7]} 15... Re3 {[%clk 0:02:33.2]} 16. Be2 {[%clk 0:02:16.9]} 16...
Rae8 {[%clk 0:02:29.1]} 17. Qd2 {[%clk 0:01:43.1]} 17... Bxf3 {[%clk 0:02:22.4]}
18. Bxf3 {[%clk 0:01:39.3]} 18... Bg5 {[%clk 0:02:09]} 19. Nc4 {[%clk
0:01:27.2]} 19... Rxf3 {[%clk 0:02:05.9]} 20. Qxf4 {[%clk 0:01:21.9]} 20... Rxf4
{[%clk 0:02:06.8]} 21. Rxf4 {[%clk 0:01:20.4]} 21... Bxf4 {[%clk 0:02:06.7]} 22.
g3 {[%clk 0:01:20.5]} 22... Bh6 {[%clk 0:02:00]} 23. Kg2 {[%clk 0:01:05.5]}
23... g6 {[%clk 0:01:58.2]} 24. Kh3 {[%clk 0:01:05.2]} 24... Re2 {[%clk
0:01:56.7]} 25. a3 {[%clk 0:01:02.9]} 25... b5 {[%clk 0:01:54.7]} 26. d5 {[%clk
0:00:58.7]} 26... Ne7 {[%clk 0:01:47.8]} 27. Na5 {[%clk 0:00:55.3]} 27... Nxd5
{[%clk 0:01:47.1]} 28. Nc6 {[%clk 0:00:52.4]} 0-1

[Event "Betsys MČR v online bleskovém šachu 2021"]
[Site "Chess.com"]
[Date "2021.04.17"]
[Round "5"]
[White "ritchi12"]
[Black "indebol"]
[Result "0-1"]
[WhiteElo "1126"]
[BlackElo "1547"]
[TimeControl "180+1"]
[EndTime "9:45:01 PDT"]
[Termination "Uživatel indebol zvítězil matem"]

1. e4 {[%clk 0:03:00.9]} 1... c5 {[%clk 0:02:02]} 2. Nf3 {[%clk 0:02:59.8]} 2...
Nc6 {[%clk 0:02:02.3]} 3. Nc3 {[%clk 0:02:59.3]} 3... d6 {[%clk 0:02:00.4]} 4.
Bc4 {[%clk 0:02:56.9]} 4... Nf6 {[%clk 0:02:00.3]} 5. Ng5 {[%clk 0:02:56]} 5...
e6 {[%clk 0:02:00.1]} 6. O-O {[%clk 0:02:51.5]} 6... g6 {[%clk 0:01:59.9]} 7.
Qf3 {[%clk 0:02:47.2]} 7... Bg7 {[%clk 0:01:59]} 8. d3 {[%clk 0:02:46.2]} 8...
O-O {[%clk 0:01:57.5]} 9. Qh3 {[%clk 0:02:38.7]} 9... a6 {[%clk 0:01:49.7]} 10.
Bf4 {[%clk 0:02:31.3]} 10... a5 {[%clk 0:01:46.9]} 11. e5 {[%clk 0:02:29.4]}
11... dxe5 {[%clk 0:01:44.5]} 12. Be3 {[%clk 0:02:23.2]} 12... Nd4 {[%clk
0:01:42.7]} 13. Bxd4 {[%clk 0:02:18.3]} 13... exd4 {[%clk 0:01:42.2]} 14. Nce4
{[%clk 0:02:14.4]} 14... h6 {[%clk 0:01:41.3]} 15. Nxf6+ {[%clk 0:02:10.7]}
15... Qxf6 {[%clk 0:01:42.2]} 16. Nf3 {[%clk 0:02:10.1]} 16... e5 {[%clk
0:01:40.8]} 17. a4 {[%clk 0:02:06.6]} 17... Bxh3 {[%clk 0:01:40.1]} 18. gxh3
{[%clk 0:02:05.9]} 18... Qxf3 {[%clk 0:01:39.1]} 19. Rae1 {[%clk 0:02:02.1]}
19... Qxh3 {[%clk 0:01:37.1]} 20. Re4 {[%clk 0:02:00.6]} 20... Kh7 {[%clk
0:01:21.6]} 21. b3 {[%clk 0:02:00.2]} 21... f5 {[%clk 0:01:20.1]} 22. Ree1
{[%clk 0:01:55.5]} 22... f4 {[%clk 0:01:19.8]} 23. f3 {[%clk 0:01:54.2]} 23...
Rf5 {[%clk 0:01:14.4]} 24. Kh1 {[%clk 0:01:53]} 24... Rg5 {[%clk 0:01:09]} 25.
Rf2 {[%clk 0:01:50.5]} 25... Rf8 {[%clk 0:01:03.5]} 26. Rg1 {[%clk 0:01:49.4]}
26... Rff5 {[%clk 0:00:59.6]} 27. Be6 {[%clk 0:01:40.4]} 27... Rxg1+ {[%clk
0:00:58.5]} 28. Kxg1 {[%clk 0:01:40.5]} 28... Rg5+ {[%clk 0:00:57.8]} 29. Rg2
{[%clk 0:01:38.4]} 29... Qxg2# {[%clk 0:00:56.3]} 0-1

[Event "Betsys MČR v online bleskovém šachu 2021"]
[Site "Chess.com"]
[Date "2021.04.17"]
[Round "5"]
[White "Hroch_Hippo"]
[Black "Kokos3"]
[Result "0-1"]
[WhiteElo "1077"]
[BlackElo "1490"]
[TimeControl "180+1"]
[EndTime "9:45:05 PDT"]
[Termination "Uživatel Kokos3 zvítězil matem"]

1. e4 {[%clk 0:03:00.2]} 1... e5 {[%clk 0:02:59.5]} 2. Nf3 {[%clk 0:02:59.5]}
2... Nc6 {[%clk 0:02:59]} 3. Bc4 {[%clk 0:03:00.1]} 3... Bc5 {[%clk 0:02:55.6]}
4. d3 {[%clk 0:02:54.6]} 4... h6 {[%clk 0:02:34.2]} 5. O-O {[%clk 0:02:51.4]}
5... Nf6 {[%clk 0:02:33.7]} 6. h3 {[%clk 0:02:48.4]} 6... d6 {[%clk 0:02:31.8]}
7. a3 {[%clk 0:02:45.2]} 7... O-O {[%clk 0:02:30.4]} 8. Nc3 {[%clk 0:02:43.1]}
8... a6 {[%clk 0:02:18.8]} 9. b4 {[%clk 0:02:39]} 9... Ba7 {[%clk 0:02:15.5]}
10. Nd5 {[%clk 0:02:38.4]} 10... Nxd5 {[%clk 0:02:10.5]} 11. exd5 {[%clk
0:02:38.5]} 11... Ne7 {[%clk 0:02:05.9]} 12. Be3 {[%clk 0:02:31.9]} 12... b5
{[%clk 0:01:50]} 13. Bb3 {[%clk 0:02:24.3]} 13... Nf5 {[%clk 0:01:42]} 14. Bxa7
{[%clk 0:02:20.4]} 14... Rxa7 {[%clk 0:01:41.6]} 15. d4 {[%clk 0:02:14.7]} 15...
e4 {[%clk 0:01:31.2]} 16. Nd2 {[%clk 0:02:08.7]} 16... Nxd4 {[%clk 0:01:30.2]}
17. Nxe4 {[%clk 0:02:08.3]} 17... Nxb3 {[%clk 0:01:30.1]} 18. cxb3 {[%clk
0:02:08.3]} 18... Bf5 {[%clk 0:01:24.9]} 19. Qd3 {[%clk 0:02:06.1]} 19... Re8
{[%clk 0:01:22.3]} 20. f3 {[%clk 0:02:04.9]} 20... c6 {[%clk 0:01:16.4]} 21.
dxc6 {[%clk 0:02:02.9]} 21... d5 {[%clk 0:01:16.2]} 22. Rfe1 {[%clk 0:01:55.8]}
22... dxe4 {[%clk 0:01:12.5]} 23. fxe4 {[%clk 0:01:55.9]} 23... Qxd3 {[%clk
0:01:10.6]} 24. exf5 {[%clk 0:01:55]} 24... Rxe1+ {[%clk 0:01:08.5]} 25. Rxe1
{[%clk 0:01:54.4]} 25... Qd4+ {[%clk 0:01:07]} 26. Kh2 {[%clk 0:01:53.5]} 26...
Qd6+ {[%clk 0:01:05.6]} 27. Kh1 {[%clk 0:01:52.6]} 27... Qxc6 {[%clk 0:01:05.3]}
28. a4 {[%clk 0:01:52.1]} 28... Qc3 {[%clk 0:01:04.2]} 29. axb5 {[%clk
0:01:51.6]} 29... Qxe1+ {[%clk 0:01:03.5]} 30. Kh2 {[%clk 0:01:50.9]} 30... axb5
{[%clk 0:01:00.8]} 31. f6 {[%clk 0:01:49.7]} 31... Ra2 {[%clk 0:00:57.5]} 32.
fxg7 {[%clk 0:01:47.8]} 32... Qf2 {[%clk 0:00:54.4]} 33. h4 {[%clk 0:01:41.8]}
33... Qxg2# {[%clk 0:00:52.7]} 0-1

[Event "Betsys MČR v online bleskovém šachu 2021"]
[Site "Chess.com"]
[Date "2021.04.17"]
[Round "5"]
[White "Koli05"]
[Black "hever99"]
[Result "1-0"]
[WhiteElo "1815"]
[BlackElo "2056"]
[TimeControl "180+1"]
[EndTime "9:45:08 PDT"]
[Termination "Uživatel Koli05 zvítězil po vzdání soupeře"]

1. d4 {[%clk 0:03:00.9]} 1... Nf6 {[%clk 0:02:59.4]} 2. c4 {[%clk 0:03:01.8]}
2... g6 {[%clk 0:02:59.1]} 3. Nc3 {[%clk 0:03:01.9]} 3... d5 {[%clk 0:02:59]} 4.
cxd5 {[%clk 0:03:01.5]} 4... Nxd5 {[%clk 0:02:59.1]} 5. Bd2 {[%clk 0:03:01.7]}
5... Bg7 {[%clk 0:02:55.9]} 6. e4 {[%clk 0:03:01.5]} 6... Nb6 {[%clk 0:02:55.8]}
7. Be3 {[%clk 0:03:00.8]} 7... O-O {[%clk 0:02:52.9]} 8. Be2 {[%clk 0:03:00.6]}
8... Nc6 {[%clk 0:02:50.9]} 9. d5 {[%clk 0:02:59.2]} 9... Ne5 {[%clk 0:02:34.6]}
10. Bd4 {[%clk 0:02:58.7]} 10... Nec4 {[%clk 0:02:21.2]} 11. Bxg7 {[%clk
0:02:51.1]} 11... Kxg7 {[%clk 0:02:20.6]} 12. Bxc4 {[%clk 0:02:50.5]} 12... Nxc4
{[%clk 0:02:12.3]} 13. Qd4+ {[%clk 0:02:49.9]} 13... e5 {[%clk 0:02:10.3]} 14.
Qxc4 {[%clk 0:02:48.4]} 14... a6 {[%clk 0:01:56.7]} 15. Nf3 {[%clk 0:02:47.2]}
15... f5 {[%clk 0:01:42.3]} 16. Nxe5 {[%clk 0:02:41.1]} 16... fxe4 {[%clk
0:01:37.9]} 17. O-O {[%clk 0:02:39]} 17... Qd6 {[%clk 0:01:27.4]} 18. Qd4 {[%clk
0:02:22.2]} 18... Kg8 {[%clk 0:01:24.2]} 19. Nxe4 {[%clk 0:02:17.5]} 19... Qd8
{[%clk 0:01:22.6]} 20. Rad1 {[%clk 0:02:10.9]} 20... Bf5 {[%clk 0:01:22]} 21.
Ng3 {[%clk 0:01:52.7]} 21... Qd6 {[%clk 0:01:17.3]} 22. Nc4 {[%clk 0:01:46.3]}
22... Qd7 {[%clk 0:01:10.8]} 23. Nxf5 {[%clk 0:01:42.9]} 23... Rxf5 {[%clk
0:01:10.7]} 24. d6 {[%clk 0:01:42.6]} 24... cxd6 {[%clk 0:00:56]} 25. Nxd6
{[%clk 0:01:40.4]} 25... Rff8 {[%clk 0:00:46.7]} 26. Qd5+ {[%clk 0:01:38.4]} 1-0

[Event "Betsys MČR v online bleskovém šachu 2021"]
[Site "Chess.com"]
[Date "2021.04.17"]
[Round "5"]
[White "Marcus_Aurelius_CZ"]
[Black "Lipican"]
[Result "0-1"]
[WhiteElo "1409"]
[BlackElo "2092"]
[TimeControl "180+1"]
[EndTime "9:45:20 PDT"]
[Termination "Uživatel Lipican zvítězil po vzdání soupeře"]

1. e4 {[%clk 0:03:00.9]} 1... c5 {[%clk 0:02:59]} 2. Nf3 {[%clk 0:03:00.9]} 2...
d6 {[%clk 0:02:58.6]} 3. d4 {[%clk 0:03:01.4]} 3... cxd4 {[%clk 0:02:58.4]} 4.
Nxd4 {[%clk 0:03:01.9]} 4... Nf6 {[%clk 0:02:58.2]} 5. Nc3 {[%clk 0:03:02.2]}
5... Nc6 {[%clk 0:02:58.3]} 6. f3 {[%clk 0:03:02.5]} 6... e5 {[%clk 0:02:57.4]}
7. Be3 {[%clk 0:03:03.1]} 7... exd4 {[%clk 0:02:56.6]} 8. Bxd4 {[%clk
0:03:03.3]} 8... Be7 {[%clk 0:02:53.8]} 9. Bb5 {[%clk 0:03:01.6]} 9... O-O
{[%clk 0:02:52.7]} 10. O-O {[%clk 0:03:00.8]} 10... Nxd4 {[%clk 0:02:48.4]} 11.
Qxd4 {[%clk 0:02:59.5]} 11... a6 {[%clk 0:02:47.7]} 12. Bc4 {[%clk 0:02:56.5]}
12... Qc7 {[%clk 0:02:45.5]} 13. Bb3 {[%clk 0:02:53.6]} 13... d5 {[%clk
0:02:43.3]} 14. Nxd5 {[%clk 0:02:42.5]} 14... Nxd5 {[%clk 0:02:39.8]} 15. Qxd5
{[%clk 0:02:40.3]} 15... Be6 {[%clk 0:02:38.7]} 16. Qd3 {[%clk 0:02:37.7]} 16...
Bxb3 {[%clk 0:02:36.2]} 17. cxb3 {[%clk 0:02:35.6]} 17... Rfd8 {[%clk
0:02:34.5]} 18. Qc3 {[%clk 0:02:33.1]} 18... Rac8 {[%clk 0:02:32]} 19. Qxc7
{[%clk 0:02:29.5]} 19... Rxc7 {[%clk 0:02:31.4]} 20. Rac1 {[%clk 0:02:27.1]}
20... Rdc8 {[%clk 0:02:29]} 21. Rxc7 {[%clk 0:02:19.6]} 21... Rxc7 {[%clk
0:02:28.9]} 22. Rd1 {[%clk 0:02:09.5]} 22... Kf8 {[%clk 0:02:27]} 23. Rd2 {[%clk
0:02:03.8]} 23... Ke8 {[%clk 0:02:25.8]} 24. Kf2 {[%clk 0:02:02.8]} 24... Rc1
{[%clk 0:02:22.8]} 25. a3 {[%clk 0:02:01.2]} 25... Bc5+ {[%clk 0:02:18.3]} 26.
Kg3 {[%clk 0:02:00.2]} 26... Ke7 {[%clk 0:02:15.3]} 27. b4 {[%clk 0:01:57.8]}
27... Bd6+ {[%clk 0:02:14.1]} 28. f4 {[%clk 0:01:46.7]} 28... g5 {[%clk
0:02:11]} 29. e5 {[%clk 0:01:38.2]} 29... gxf4+ {[%clk 0:02:10.6]} 30. Kxf4
{[%clk 0:01:37.8]} 30... Rf1+ {[%clk 0:02:10]} 31. Kg3 {[%clk 0:01:25.4]} 31...
Bxe5+ {[%clk 0:02:09]} 32. Kh3 {[%clk 0:01:25.5]} 32... f6 {[%clk 0:02:06.7]}
33. Rc2 {[%clk 0:01:24.3]} 33... Rd1 {[%clk 0:02:03.4]} 34. g3 {[%clk
0:01:18.8]} 34... Rd3 {[%clk 0:02:02]} 35. Kg2 {[%clk 0:01:17.6]} 35... Rb3
{[%clk 0:02:01.4]} 36. Kf2 {[%clk 0:01:03.6]} 36... Rxb2 {[%clk 0:02:00.4]} 37.
Rxb2 {[%clk 0:01:03.5]} 37... Bxb2 {[%clk 0:01:59.8]} 38. a4 {[%clk 0:01:03.4]}
38... b5 {[%clk 0:01:59]} 39. axb5 {[%clk 0:01:01.7]} 39... axb5 {[%clk
0:01:58.7]} 40. Ke2 {[%clk 0:01:01.7]} 40... Bc3 {[%clk 0:01:58.6]} 41. Kd3
{[%clk 0:01:02.4]} 41... Bxb4 {[%clk 0:01:58.2]} 42. Kc2 {[%clk 0:01:02.8]}
42... Bc5 {[%clk 0:01:57.7]} 43. Kb3 {[%clk 0:01:02]} 43... Ke6 {[%clk
0:01:57.5]} 44. h3 {[%clk 0:01:01.9]} 44... f5 {[%clk 0:01:55.4]} 45. h4 {[%clk
0:00:56.9]} 45... h5 {[%clk 0:01:53.8]} 0-1

[Event "Betsys MČR v online bleskovém šachu 2021"]
[Site "Chess.com"]
[Date "2021.04.17"]
[Round "5"]
[White "hvanacek"]
[Black "Simaril76"]
[Result "1-0"]
[WhiteElo "957"]
[BlackElo "702"]
[TimeControl "180+1"]
[EndTime "9:45:24 PDT"]
[Termination "Uživatel hvanacek zvítězil matem"]

1. e4 {[%clk 0:03:00.9]} 1... c5 {[%clk 0:02:58]} 2. Nc3 {[%clk 0:02:56.7]} 2...
Nc6 {[%clk 0:02:58.5]} 3. f4 {[%clk 0:02:56.2]} 3... g6 {[%clk 0:02:58.9]} 4.
Nf3 {[%clk 0:02:55.1]} 4... Nf6 {[%clk 0:02:59.2]} 5. d3 {[%clk 0:02:51.2]} 5...
Bg7 {[%clk 0:02:55.2]} 6. b3 {[%clk 0:02:48.5]} 6... d6 {[%clk 0:02:54.6]} 7.
Bb2 {[%clk 0:02:47.6]} 7... e5 {[%clk 0:02:54.2]} 8. f5 {[%clk 0:02:45.3]} 8...
gxf5 {[%clk 0:02:47.5]} 9. exf5 {[%clk 0:02:45.3]} 9... Bxf5 {[%clk 0:02:46.6]}
10. Qe2 {[%clk 0:02:40.2]} 10... Qd7 {[%clk 0:02:41.5]} 11. O-O-O {[%clk
0:02:38.8]} 11... e4 {[%clk 0:02:33.6]} 12. dxe4 {[%clk 0:02:33.6]} 12... Be6
{[%clk 0:02:16.9]} 13. e5 {[%clk 0:02:27.4]} 13... dxe5 {[%clk 0:02:10.1]} 14.
Rxd7 {[%clk 0:02:25.8]} 14... Kxd7 {[%clk 0:02:05.8]} 15. Nxe5+ {[%clk
0:02:22.4]} 15... Nxe5 {[%clk 0:02:00.9]} 16. Qxe5 {[%clk 0:02:21.1]} 16... b6
{[%clk 0:01:45.4]} 17. Bb5+ {[%clk 0:02:14.5]} 17... Ke7 {[%clk 0:01:38.9]} 18.
Nd5+ {[%clk 0:02:05]} 18... Nxd5 {[%clk 0:01:32.6]} 19. Qxg7 {[%clk 0:02:03.5]}
19... Nb4 {[%clk 0:01:10.6]} 20. Bf6+ {[%clk 0:01:54.2]} 20... Kd6 {[%clk
0:00:59.2]} 21. Be5+ {[%clk 0:01:46.2]} 21... Ke7 {[%clk 0:00:56.5]} 22. Qf6+
{[%clk 0:01:42.5]} 22... Kf8 {[%clk 0:00:44.5]} 23. Qxh8+ {[%clk 0:01:39.3]}
23... Ke7 {[%clk 0:00:43.7]} 24. Qxa8 {[%clk 0:01:38.4]} 24... Nxa2+ {[%clk
0:00:43.3]} 25. Kb2 {[%clk 0:01:35.1]} 25... Nb4 {[%clk 0:00:40.4]} 26. Qb7+
{[%clk 0:01:28.6]} 26... Kd8 {[%clk 0:00:35.3]} 27. Qc7# {[%clk 0:01:25.4]} 1-0

[Event "Betsys MČR v online bleskovém šachu 2021"]
[Site "Chess.com"]
[Date "2021.04.17"]
[Round "5"]
[White "Trener-Pokrocili"]
[Black "matykov"]
[Result "1-0"]
[WhiteElo "2247"]
[BlackElo "2012"]
[TimeControl "180+1"]
[EndTime "9:45:25 PDT"]
[Termination "Uživatel Trener-Pokrocili zvítězil po vzdání soupeře"]

1. Nf3 {[%clk 0:03:00.9]} 1... Nf6 {[%clk 0:02:55.7]} 2. c4 {[%clk 0:03:00.4]}
2... g6 {[%clk 0:02:55.1]} 3. Nc3 {[%clk 0:03:00]} 3... d5 {[%clk 0:02:52.1]} 4.
cxd5 {[%clk 0:02:59.4]} 4... Nxd5 {[%clk 0:02:53]} 5. e4 {[%clk 0:02:59.7]} 5...
Nxc3 {[%clk 0:02:52.8]} 6. dxc3 {[%clk 0:03:00.1]} 6... Qxd1+ {[%clk 0:02:51.6]}
7. Kxd1 {[%clk 0:03:00.4]} 7... Bg7 {[%clk 0:02:50.9]} 8. Bf4 {[%clk 0:03:00.2]}
8... c6 {[%clk 0:02:47]} 9. Kc2 {[%clk 0:02:56.3]} 9... O-O {[%clk 0:02:41.2]}
10. a4 {[%clk 0:02:52.4]} 10... Bg4 {[%clk 0:02:40.3]} 11. Nd2 {[%clk
0:02:50.2]} 11... Nd7 {[%clk 0:02:35.8]} 12. Bc4 {[%clk 0:02:35.7]} 12... e5
{[%clk 0:02:05.3]} 13. Be3 {[%clk 0:02:32.7]} 13... Nb6 {[%clk 0:02:00.4]} 14.
Bb3 {[%clk 0:02:25]} 14... Rad8 {[%clk 0:01:58.8]} 15. f3 {[%clk 0:02:20.4]}
15... Bc8 {[%clk 0:01:36.9]} 16. a5 {[%clk 0:02:17.4]} 16... Nd7 {[%clk
0:01:20.5]} 17. Bxa7 {[%clk 0:02:16.1]} 17... c5 {[%clk 0:01:06.8]} 18. Nc4
{[%clk 0:02:06.2]} 18... Rfe8 {[%clk 0:01:05.4]} 19. Nd6 {[%clk 0:01:55]} 19...
Re7 {[%clk 0:01:04.4]} 20. Rhd1 {[%clk 0:01:48.1]} 20... Bf8 {[%clk 0:00:39.7]}
21. Rd3 {[%clk 0:01:33.5]} 21... Kg7 {[%clk 0:00:39.9]} 22. Rad1 {[%clk
0:01:32.3]} 22... f6 {[%clk 0:00:40.1]} 23. Nxc8 {[%clk 0:01:26.9]} 1-0

[Event "Betsys MČR v online bleskovém šachu 2021"]
[Site "Chess.com"]
[Date "2021.04.17"]
[Round "5"]
[White "kubajss"]
[Black "adiklan"]
[Result "0-1"]
[WhiteElo "873"]
[BlackElo "1909"]
[TimeControl "180+1"]
[EndTime "9:45:25 PDT"]
[Termination "Uživatel adiklan zvítězil po vzdání soupeře"]

1. e4 {[%clk 0:03:00.9]} 1... c5 {[%clk 0:02:59.2]} 2. Nf3 {[%clk 0:03:00.1]}
2... e6 {[%clk 0:02:58.6]} 3. Nc3 {[%clk 0:02:59.3]} 3... a6 {[%clk 0:02:57.7]}
4. Bc4 {[%clk 0:02:59.5]} 4... b5 {[%clk 0:02:52.4]} 5. Be2 {[%clk 0:02:49.7]}
5... Nc6 {[%clk 0:02:45.7]} 6. d4 {[%clk 0:02:44.3]} 6... cxd4 {[%clk
0:02:44.2]} 7. Nxd4 {[%clk 0:02:43.1]} 7... Qc7 {[%clk 0:02:44.1]} 8. Be3 {[%clk
0:02:38.6]} 8... Nf6 {[%clk 0:02:41.5]} 9. O-O {[%clk 0:02:37.8]} 9... Bb7
{[%clk 0:02:39.9]} 10. g3 {[%clk 0:02:02.5]} 10... Be7 {[%clk 0:02:31.5]} 11.
Bf4 {[%clk 0:02:01.5]} 11... e5 {[%clk 0:02:30.5]} 12. Nxc6 {[%clk 0:01:54.6]}
12... dxc6 {[%clk 0:02:31]} 13. Bg5 {[%clk 0:01:53.5]} 13... Rd8 {[%clk
0:02:29.7]} 14. Bd3 {[%clk 0:01:47.2]} 14... O-O {[%clk 0:02:28.8]} 15. Qf3
{[%clk 0:01:42.2]} 15... h6 {[%clk 0:02:28.7]} 16. Be3 {[%clk 0:01:31.9]} 16...
b4 {[%clk 0:02:19]} 17. Na4 {[%clk 0:01:24.7]} 17... Qa5 {[%clk 0:02:18.4]} 18.
b3 {[%clk 0:01:17]} 18... c5 {[%clk 0:02:18.1]} 19. Rad1 {[%clk 0:01:11.3]}
19... Bc6 {[%clk 0:02:09.4]} 20. Nb2 {[%clk 0:00:56.3]} 20... Qxa2 {[%clk
0:02:05.9]} 21. Rb1 {[%clk 0:00:48.5]} 21... Bb5 {[%clk 0:01:50.3]} 22. Bxb5
{[%clk 0:00:45.3]} 22... axb5 {[%clk 0:01:51.2]} 23. Qe2 {[%clk 0:00:43.2]}
23... Rb8 {[%clk 0:01:40.1]} 24. Rfd1 {[%clk 0:00:37.7]} 24... Nxe4 {[%clk
0:01:40.3]} 0-1